Cogmind - Beta 14 X2 @@@ ROGUE MODE // 2024.08.03 @ 10:01:01

Player: Olafz

Result: Destroyed by Y-45 Defender with Beam Rifle

 Performance 
-------------
Evolutions (1)             500
Regions Visited (2)        400
Robots Destroyed (0)       0
Value Destroyed (0)        0
Prototype IDs (0)          0
Alien Tech Used (0)        0
Bonus (200)                200
              TOTAL SCORE: 1100

 Bonus
-------
Pacifist                   200

 Cogmind 
---------
Core Integrity             0/400
Matter                     300/300
Energy                     99/100
System Corruption          2%
Temperature                Cool (9)
Movement                   Core (50)
Location                   -9/Materials

 Parts 
-------
>   --- POWER (1) --------
        (None)
>   --- PROPULSION (2) ---
        (None)
>   --- UTILITY (4) ------
        (None)
>   --- WEAPON (2) -------
        (None)
>   --- INVENTORY (5) ----
        (None)

 Peak State 
------------
>         --- POWER ------------
    Light Ion Engine
>         --- PROPULSION -------
          Aluminum Leg
          Aluminum Leg
>         --- UTILITY ----------
    Small Storage Unit
>         --- WEAPON -----------
    Light Assault Rifle
>         --- INVENTORY --------
    Light Ion Engine
    Light Treads
    Light Treads
          Wheel
  Compact Wheel
   Medium Laser
          Assault Rifle
[Rating: 5]

 Favorites 
-----------
Power                      Light Ion Engine
  Engine                   Light Ion Engine
Propulsion                 Aluminum Leg
  Leg                      Aluminum Leg
Utility                    Small Storage Unit
  Storage                  Small Storage Unit
Weapon                     Light Assault Rifle
  Ballistic Gun            Light Assault Rifle

 Build                          | -11 -10 -9  
-------                    Run  | Yrd Mat Mat 
Slots Evolved              2    | .   .   2   
  Power                    .    | .   .   .   
  Propulsion               .    | .   .   .   
  Utility                  2    | .   .   2   
  Weapon                   .    | .   .   .   
Parts Attached             .    | .   .   .   
  Power                    .    | .   .   .   
    Engine                 .    | .   .   .   
    Core                   .    | .   .   .   
    Reactor                .    | .   .   .   
  Propulsion               .    | .   .   .   
    Treads                 .    | .   .   .   
    Leg                    .    | .   .   .   
    Wheel                  .    | .   .   .   
    Hover                  .    | .   .   .   
    Flight                 .    | .   .   .   
  Utility                  .    | .   .   .   
    Device                 .    | .   .   .   
    Storage                .    | .   .   .   
    Processor              .    | .   .   .   
    Hackware               .    | .   .   .   
    Protection             .    | .   .   .   
    Artifact               .    | .   .   .   
  Weapon                   .    | .   .   .   
    Energy Gun             .    | .   .   .   
    Energy Cannon          .    | .   .   .   
    Ballistic Gun          .    | .   .   .   
    Ballistic Cannon       .    | .   .   .   
    Launcher               .    | .   .   .   
    Special Weapon         .    | .   .   .   
    Impact Weapon          .    | .   .   .   
    Slashing Weapon        .    | .   .   .   
    Piercing Weapon        .    | .   .   .   
    Special Melee Weapon   .    | .   .   .   
  Unidentified Prototypes  .    | .   .   .   
Parts Lost                 .    | .   .   .   
  Power                    .    | .   .   .   
  Propulsion               .    | .   .   .   
  Utility                  .    | .   .   .   
  Weapon                   .    | .   .   .   
  Highest Loss Streak      .    | .   .   .   
  To Critical Strikes      .    | .   .   .   
Average Slot Usage (%)     .    | .   .   .   
Naked Turns                132  | .   59  73  
Heaviest Build             11   | 11  .   .   
  Greatest Support         20   | 20  3   3   
  Greatest Overweight (x)  .    | .   .   .   
  Average Overweight (x)   .    | .   .   .   
Largest Inventory Capacity 8    | .   8   5   
  Average Capacity         5    | .   5   5   
  Most Carried             8    | .   8   .   
  Average Carried          .    | .   .   .   
  Final Capacity           8    | 8   5   5   
  Final Carried            6    | 6   .   .   

 Class Distribution 
--------------------
 100% | Mutant

 Dominant Class 
----------------
 Mutant | -10/Materials
 Mutant | -9/Materials

 Resources                      | -11 -10 -9  
-----------                Run  | Yrd Mat Mat 
Matter Collected           200  | 200 .   .   
  Remotely                 .    | .   .   .   
Salvage Created            .    | .   .   .   
  Parts                    .    | .   .   .   
Haulers Intercepted        .    | .   .   .   
Recyclers Shooed           .    | .   .   .   
Parts Field Recycled       .    | .   .   .   
  Retrieved Matter         .    | .   .   .   
Parts Self-Destructed      .    | .   .   .   
  Prevented                .    | .   .   .   

 Kills                          | -11 -10 -9  
-------                    Run  | Yrd Mat Mat 
Combat Hostiles Destroyed  .    | .   .   .   
Classes Destroyed          .    | .   .   .   
Best Kill Streak           .    | .   .   .   
  Combat Bots Only         .    | .   .   .   
Max Kills in Single Turn   .    | .   .   .   
  Gunslinging              .    | .   .   .   
  Exploded                 .    | .   .   .   
  Melee                    .    | .   .   .   
Uniques/NPCs Destroyed     .    | .   .   .   

 Combat                         | -11 -10 -9  
--------                   Run  | Yrd Mat Mat 
Hostile Shots Fired        77   | .   5   72  
  Missed                   27   | .   2   25  
Damage Taken               439  | .   39  400 
  Core                     439  | .   39  400 
  Absorbed by Shields      .    | .   .   .   
Core Remaining (%)         92   | 100 84  .   
Volleys Fired              .    | .   .   .   
  Largest                  .    | .   .   .   
  Hottest                  .    | .   .   .   
Shots Fired                .    | .   .   .   
  Gun                      .    | .   .   .   
  Cannon                   .    | .   .   .   
  Launcher                 .    | .   .   .   
  Special                  .    | .   .   .   
  Kinetic                  .    | .   .   .   
  Thermal                  .    | .   .   .   
  Explosive                .    | .   .   .   
  Electromagnetic          .    | .   .   .   
  Robot Hit Streak         .    | .   .   .   
  Robot Miss Streak        .    | .   .   .   
  Penetration Max          .    | .   .   .   
  Secondary Targets        .    | .   .   .   
Shots Hit Robots           .    | .   .   .   
  Core Hits                2    | .   .   2   
  Critical Kills           .    | .   .   .   
  Critical Parts Destroyed .    | .   .   .   
  Critical Strikes         .    | .   .   .   
Melee Attacks              .    | .   .   .   
  Impact                   .    | .   .   .   
  Slashing                 .    | .   .   .   
  Piercing                 .    | .   .   .   
  Sneak Attacks            .    | .   .   .   
    Combat Hostiles        .    | .   .   .   
  Follow-up Attacks        .    | .   .   .   
Damage Inflicted           36   | .   12  24  
  Guns                     .    | .   .   .   
  Cannons                  .    | .   .   .   
  Explosions               .    | .   .   .   
  Melee                    .    | .   .   .   
  Ramming                  36   | .   12  24  
  Kinetic                  .    | .   .   .   
  Thermal                  .    | .   .   .   
  Explosive                .    | .   .   .   
  Electromagnetic          .    | .   .   .   
  Impact                   .    | .   .   .   
  Slashing                 .    | .   .   .   
  Piercing                 .    | .   .   .   
Highest Corruption         2    | .   .   2   
  Average Corruption       2    | .   .   2   
  Corruption Purged        .    | .   .   .   
  Corruption Blocked       .    | .   .   .   
  Effects                  1    | .   .   1   
    Message Errors         1    | .   .   1   
Overload Shots             .    | .   .   .   
Overflow Damage            .    | .   .   .   
  Projectiles              .    | .   .   .   
  Explosions               .    | .   .   .   
  Melee                    .    | .   .   .   
Knockbacks                 .    | .   .   .   
  Impact                   .    | .   .   .   
  Kinetic                  .    | .   .   .   
  Secondary                .    | .   .   .   
Self-Inflicted Damage      16   | .   5   11  
  Shots                    .    | .   .   .   
  Rammed                   8    | .   2   6   
Targets Rammed             8    | .   2   6   
  Kicked                   .    | .   .   .   
  Crushed                  .    | .   .   .   
Highest Temperature        .    | .   .   .   
  Average Temperature      .    | .   .   .   
  Received Heat Transfer   72   | .   18  54  
Siege Activations          .    | .   .   .   
Robots Corrupted           .    | .   .   .   
  Combat Hostiles          .    | .   .   .   
  Parts Fried              .    | .   .   .   
  Impact Corruptions       .    | .   .   .   
Robots Melted              .    | .   .   .   
  Combat Hostiles          .    | .   .   .   
  Parts Melted             .    | .   .   .   
  Heat Transferred         .    | .   .   .   
Parts Sabotaged            .    | .   .   .   
Parts Stolen               .    | .   .   .   
Parts Stripped             .    | .   .   .   
Power Chain Reactions      .    | .   .   .   

 Alert                          | -11 -10 -9  
-------                    Run  | Yrd Mat Mat 
Peak Influence             35   | .   15  35  
  Initial                  5    | .   .   5   
  Average                  10   | .   12  9   
Maximum Alert Level        .    | .   .   .   
  Low Security (%)         100  | .   100 100 
  Level 1                  .    | .   .   .   
  Level 2                  .    | .   .   .   
  Level 3                  .    | .   .   .   
  Level 4                  .    | .   .   .   
  Level 5                  .    | .   .   .   
  High Security            .    | .   .   .   
  Max Security             .    | .   .   .   
Squads Dispatched          1    | .   1   .   
  Investigation            .    | .   .   .   
  Extermination            .    | .   .   .   
  Reinforcement            1    | .   1   .   
  Assault                  .    | .   .   .   
  Garrison                 .    | .   .   .   
  Intercept                .    | .   .   .   
Searches Triggered         .    | .   .   .   
Construction Impeded       .    | .   .   .   
Haulers Reinforced         .    | .   .   .   
Active Scanning Responses  .    | .   .   .   
Cargo Convoy Interrupts    .    | .   .   .   

 Stealth                        | -11 -10 -9  
---------                  Run  | Yrd Mat Mat 
Distress Signals           3    | .   1   2   
Communications Jammed      .    | .   .   .   
  Distress Signals         .    | .   .   .   
Times Spotted              18   | .   4   14  
  Peak Tracking Total      14   | .   3   14  
  Tactical Retreats        .    | .   .   .   

 Traps                          | -11 -10 -9  
-------                    Run  | Yrd Mat Mat 
Traps Triggered            1    | .   .   1   
  Indirectly               .    | .   .   .   
Trap Hack Attempts         .    | .   .   .   
  Triggered                .    | .   .   .   
  Disarmed                 .    | .   .   .   
  Reprogrammed             .    | .   .   .   
  Reused                   .    | .   .   .   
Traps Extracted            .    | .   .   .   
  Installed                .    | .   .   .   
  Triggered                .    | .   .   .   

 Machines                       | -11 -10 -9  
----------                 Run  | Yrd Mat Mat 
Machines Disabled          .    | .   .   .   
  Max in Single Turn       .    | .   .   .   
Machines Repaired          .    | .   .   .   
Machines Dismantled        .    | .   .   .   
Machines Sabotaged         .    | .   .   .   
Overloaded Fab Kills       .    | .   .   .   

 Hacking                        | -11 -10 -9  
---------                  Run  | Yrd Mat Mat 
Machines Accessed          .    | .   .   .   
  Terminals                .    | .   .   .   
  Fabricators              .    | .   .   .   
  Repair Stations          .    | .   .   .   
  Recycling Units          .    | .   .   .   
  Scanalyzers              .    | .   .   .   
  Garrison Access          .    | .   .   .   
Total Hacks                .    | .   .   .   
  Successful               .    | .   .   .   
  Failed                   .    | .   .   .   
    Catastrophic           .    | .   .   .   
  Database Lockouts        .    | .   .   .   
  Manual                   .    | .   .   .   
  Terminals                .    | .   .   .   
  Fabricators              .    | .   .   .   
  Repair Stations          .    | .   .   .   
  Recycling Units          .    | .   .   .   
  Scanalyzers              .    | .   .   .   
  Garrison Access          .    | .   .   .   
Terminal Hacks             .    | .   .   .   
Fabricator Hacks           .    | .   .   .   
Repair Station Hacks       .    | .   .   .   
Recycling Unit Hacks       .    | .   .   .   
Scanalyzer                 .    | .   .   .   
Garrison Access Hacks      .    | .   .   .   
Unauthorized Hacks         .    | .   .   .   
  Terminals                .    | .   .   .   
  Fabricators              .    | .   .   .   
  Repair Stations          .    | .   .   .   
  Recycling Units          .    | .   .   .   
  Scanalyzers              .    | .   .   .   
  Garrison Access          .    | .   .   .   
Data Cores Recovered       .    | .   .   .   
  Used                     .    | .   .   .   
Hacking Detections         .    | .   .   .   
  Full Trace Events        .    | .   .   .   
  Feedback Events          .    | .   .   .   
  Feedback Blocked         .    | .   .   .   
Robot Schematics Acquired  .    | .   .   .   
  Robots Built             .    | .   .   .   
    Authchips              .    | .   .   .   
    Time                   .    | .   .   .   
  Total Robot Build Rating .    | .   .   .   
Part Schematics Acquired   .    | .   .   .   
  Parts Built              .    | .   .   .   
    Authchips              .    | .   .   .   
    Time                   .    | .   .   .   
  Total Part Build Rating  .    | .   .   .   
Parts Repaired             .    | .   .   .   
  Time                     .    | .   .   .   
Parts Recycled             .    | .   .   .   
  Recycled Matter          .    | .   .   .   
  Retrieved Matter         .    | .   .   .   
  Retrieved Components     .    | .   .   .   
Parts Scanalyzed           .    | .   .   .   
  Part Schematics Acquired .    | .   .   .   
  Parts Damaged            .    | .   .   .   

 Bothacking                     | -11 -10 -9  
------------               Run  | Yrd Mat Mat 
Used RIF Installer         .    | .   .   .   
Robots Hacked              .    | .   .   .   
  Non-combat               .    | .   .   .   
  Combat                   .    | .   .   .   
Robot Hacks Applied        .    | .   .   .   
Relay Couplers Released    .    | .   .   .   
Fabnet Peak Effective %    .    | .   .   .   
Robots Rewired             .    | .   .   .   
Allies Hacked              .    | .   .   .   
Hacks Repelled             .    | .   .   .   

 Allies                         | -11 -10 -9  
--------                   Run  | Yrd Mat Mat 
Total Allies               .    | .   .   .   
  Largest Group            .    | .   .   .   
  Highest-Rated Group      .    | .   .   .   
  Highest-Rated Ally       .    | .   .   .   
Total Orders               .    | .   .   .   
Ally Attacks               .    | .   .   .   
  Total Damage             .    | .   .   .   
  Kills                    .    | .   .   .   
Allies Corrupted           .    | .   .   .   
Allies Melted              .    | .   .   .   

 Intel                          | -11 -10 -9  
-------                    Run  | Yrd Mat Mat 
Robot Analysis Total       .    | .   .   .   
Derelict Logs Recovered    .    | .   .   .   
Drone Launches             .    | .   .   .   
  Drone Recoveries         .    | .   .   .   

 Exploration                    | -11 -10 -9  
-------------              Run  | Yrd Mat Mat 
Turns Passed               135  | .   62  73  
Spaces Moved               243  | 1   109 133 
  Core                     242  | .   109 133 
  Treads                   .    | .   .   .   
  Legs                     1    | 1   .   .   
  Wheels                   .    | .   .   .   
  Hover                    .    | .   .   .   
  Flight                   .    | .   .   .   
  Fastest Speed            50   | 120 50  50  
  Average Speed            50   | 120 50  50  
  Slowest Speed            120  | 120 50  50  
  Overloaded Moves         .    | .   .   .   
  Propulsion Burnouts      .    | .   .   .   
  Robots Hopped            .    | .   .   .   
  Cave-ins Triggered       .    | .   .   .   
Exploration Rate (%)       15   | 2   28  15  
  Regions Visited          2
    Branch Regions         .
  Pre-discovered Areas     .    | .   .   .   
  Known Exits Taken        .    | .   .   .   
  Unknown Exits Taken      2    | 1   1   .   
Scrap Searched             .    | .   .   .   
Spaces Dug                 .    | .   .   .   
Terrain Destroyed          .    | .   .   .   
  Melee                    .    | .   .   .   
  Projectile               .    | .   .   .   
  AOE                      .    | .   .   .   
Terrain Rammed             .    | .   .   .   
  Walls Destroyed          .    | .   .   .   
  Machines Disabled        .    | .   .   .   

 Actions                        | -11 -10 -9  
---------                  Run  | Yrd Mat Mat 
Total                      260  | .   121 139 
  Wait                     .    | .   .   .   
  Move                     241  | .   108 133 
  Hop                      .    | .   .   .   
  Pick Up                  .    | .   .   .   
  Fast Attach              .    | .   .   .   
  Attach                   .    | .   .   .   
  Detach                   2    | .   2   .   
  Swap                     .    | .   .   .   
  Drop                     9    | .   9   .   
  Fire                     .    | .   .   .   
  Melee                    .    | .   .   .   
  Ram                      8    | .   2   6   
  Kick                     .    | .   .   .   
  Crush                    .    | .   .   .   
  Escape Stasis            .    | .   .   .   
  Rewire                   .    | .   .   .   
  Trap                     .    | .   .   .   
  Miscellaneous            .    | .   .   .   

 Route 
-------
-11/Scrapyard
-10/Materials
-9/Materials

 History 
---------
 Turn | Location      | Event
    1 | -11/Scrapyard | Discovered new exit (range 0)
    1 | -11/Scrapyard | Entered Materials
   62 | -10/Materials | Discovered new exit (range 3)
   63 | -10/Materials | Entered another Materials area
   63 | -9/Materials  | Evolved 2 slots: Utility x2
  128 | -9/Materials  | Core integrity fell below 50%
  134 | -9/Materials  | Core integrity fell below 20%
  136 | -9/Materials  | Destroyed by Y-45 Defender with Beam Rifle

 Last Messages 
---------------
EXIT=FOUND
PARAMETERS=UTILITY+2
LOCATION=UNKNOWN
GOAL=ESCAPE
Slammed into S-10 Pest. <x2>
U-05 Engineer works on Atomic Centrifuge.
Slammed into S-10 Pest.
Destabilizing: System corrupted (+2).
W-16 Scout sends out distress signal.
Triggered Blade Trap.
Massive razor-sharp blades shoot up from within the floor.
U-05 Engineer lays Concrete.
Slammed into R-06 Scavenger.
W-16 Scout sends out distress signal.
Slammed into R-06 Scavenger.
S-10 Pest destroyed.
FVL>%H==LRVY,LLSZT/ <R|PXQ=YL
Slammed into S-10 Pest.
Critical hit (Burn: +37).
R-06 Scavenger collects Flight Unit.

 Map 
-----
+----------------------------------------------------+
| ?????????????????????????????????????????????????? |
| ?????????????????????????????????????????????????? |
| ?????????????????????????????????????????????????? |
| ?????????????????????????????????????????????????? |
| ?????????????????????????????????????????????????? |
| ?????????????????????????????????????????????????? |
| ?????????????????????????????????????????????????? |
| ?????????????????????????????????????????????????? |
| ?????????????????????????????????????????????????? |
| ?????????????????????????????????????????????????? |
| ?????????????????????????????????????????????????? |
| ?????????????????????????????????????????????????? |
| ?????????????????????????????????????????????????? |
| ?????????????????????????????????????????????????? |
| ?????????????????????????????????????????????????? |
| ?????????????????????????????????????????????????? |
| ?????????????????????????????????????????????????? |
| ?????????????????????????????????????????????????? |
| ????????????????????????????????????   ??????????? |
| ??????????????????????????????????     ??????????? |
| ?????????????????????????????????      ??????????? |
| ???????????????????????????????         ?????????? |
| ???####?????????##############          ?????????? |
|             ##### s        s          k??????????? |
|               Y%%rss              #??????????????? |
|             #####  ss    @        #??????????????? |
| ???###??????????#s s##############???????????????? |
| ######??????????#   #????????????????????????????? |
| #  """??????????#   #????????????????????????????? |
| # ""S"???########   #????????????????????????????? |
| ? "" "" ?#          #????????????????????????????? |
| ?       ?#          #????????????????????????????? |
| ?? ! ""??#          #????????????????????????????? |
| ??   ""??#   ########????????????????????????????? |
| ???  "???#   #????########???????????????????????? |
| ???   ???#   #????#  ]   #???????????????????????? |
| ??##+#####   #????#      #???????????????????????? |
| ??#          ###### """  #???????????????????????? |
| ??#          %    + """  #???????????????????????? |
| ??#          ###### """  #???????????????????????? |
| ####+#########????#      #???????????????????????? |
|            #??????########???????????????????????? |
| ""     ""  #?????????????????????????????????????? |
| "" """ """ #?????????????????????????????????????? |
| "" """  S" #?????????????????????????????????????? |
|            #?????????????????????????????????????? |
|            #?????????????????????????????????????? |
| #######/####?????????????????????????????????????? |
|      ## #????????????????????????????????????????? |
| """" ## #????????????????????????????????????????? |
+----------------------------------------------------+

 Best States
-------------
Heat Dissipation           28
Energy Generation          5
Energy Capacity            100
Matter Stores              300
Matter Capacity            300
Sight Range                16
Terrain Scan Density       10
Evasion (%)                50

 Item Schematics 
-----------------
None

 Robot Schematics 
------------------
None

 Fabricated
------------
Nothing

 Alien Tech Used 
-----------------
None

 Achievements 
--------------
None

 Challenges 
------------
None

 Game 
------
Seed              SuperdenseDisruptorGuard
  Manual?         0
Play Time         00:02:40
  Cumulative      162.7 hours
  Start           2024.08.03 @ 09:59:13
  End             2024.08.03 @ 10:01:01
Sessions          1
Manual Loads      0
Difficulty        Rogue
Special Mode      None
Game No.          261
  Rogue           259
  Adventurer      2
  Explorer        0
Win Type          -
  Total           5
  Types           4/0/0/1/0/0/0/0/0
Lore%             56
Gallery%          61
Achievement%      52
Wizard Run        0

 Options 
---------
Layout            0
ASCII             0
Keyboard          1
Movement          Numpad
Keybinds          1
Fullscreen        2
Font              18/SmallcapsGlow
Map View          76x50
Zoom Use          0%
Tactical HUD      1
Map Filters       NONE
Filters           NONE
Steam             1


RUN: fb7a2a17-6d3d-4976-878c-c038c2e631aa